Cogmind - Beta 9.6 @@@ ROGUE MODE // 2020.05.30 @ 02:51:37 Player: pGoos Result: Destroyed by S-10 Pest with Light Assault Rifle Performance ------------- Evolutions (1) 500 Regions Visited (4) 800 Robots Destroyed (21) 105 Value Destroyed (497) 497 Prototype IDs (3) 60 Alien Tech Used (0) 0 Bonus (200) 200 TOTAL SCORE: 2162 Bonus ------- High Alert Combat Kills 38 Follower Combat Kills 283 Friendly Fire -121 Cogmind --------- Core Integrity 0/400 Matter 300/300 Energy 99/100 System Corruption 7% Temperature Cool (0) Movement Core (50) Location -9/Storage Parts ------- > --- POWER (1) -------- (None) > --- PROPULSION (4) --- (None) > --- UTILITY (2) ------ Improved Targeting Computer > --- WEAPON (2) ------- (None) > --- INVENTORY (4) ---- (None) Peak State ------------ > --- POWER ------------ Light Deuterium Engine > --- PROPULSION ------- Airjet Airjet Airjet Airjet > --- UTILITY ---------- Advanced Heat Sink Weapon Shielding > --- WEAPON ----------- High-powered Shotgun High-powered Shotgun > --- INVENTORY -------- Light Deuterium Engine Light Deuterium Engine High-powered Shotgun Grenade Launcher [Rating: 28] Favorites ----------- Power Light Deuterium Engine Engine Light Deuterium Engine Propulsion Airjet Treads Light Treads Leg Aluminum Leg Hover Unit Airjet Flight Unit Improved Flight Unit Utility Weapon Shielding Device Advanced Heat Sink Storage Small Storage Unit Processor Improved Targeting Computer Protection Weapon Shielding Weapon Advanced Beam Cannon Energy Gun Particle Gun Energy Cannon Advanced Beam Cannon Ballistic Gun High-powered Shotgun Build | -11 -10 -10 -9 -9 ------- Run | Scr Mat Min Mat Sto Slots Evolved 2 | . . . 2 . Power . | . . . . . Propulsion 2 | . . . 2 . Utility . | . . . . . Weapon . | . . . . . Parts Attached 49 | 6 . 7 11 25 Power 6 | 1 . 2 1 2 Engine 6 | 1 . 2 1 2 Core . | . . . . . Reactor . | . . . . . Propulsion 20 | 2 . 2 6 10 Treads 4 | . . 2 . 2 Leg 8 | 2 . . 2 4 Wheel . | . . . . . Hover 7 | . . . 4 3 Flight 1 | . . . . 1 Utility 5 | 1 . 1 1 2 Device 1 | . . 1 . . Storage 1 | 1 . . . . Processor 1 | . . . . 1 Hackware . | . . . . . Protection 2 | . . . 1 1 Artifact . | . . . . . Weapon 18 | 2 . 2 3 11 Energy Gun 6 | 1 . 1 . 4 Energy Cannon 7 | . . . . 7 Ballistic Gun 5 | 1 . 1 3 . Ballistic Cannon . | . . . . . Launcher . | . . . . . Special Weapon . | . . . . . Impact Weapon . | . . . . . Slashing Weapon . | . . . . . Piercing Weapon . | . . . . . Special Melee Weapon . | . . . . . Unidentified Prototypes 3 | . . . . 3 Parts Lost 26 | . . 7 2 17 Power 4 | . . 2 . 2 Propulsion 11 | . . 2 . 9 Utility 2 | . . . 1 1 Weapon 9 | . . 3 1 5 Highest Loss Streak 15 | . . 5 1 15 Average Slot Usage (%) 84 | . 85 77 89 87 Engine 8 | . 14 5 11 10 Treads 10 | . . 19 17 1 Leg 9 | . 28 8 17 6 Hover 14 | . . . 6 29 Device 5 | . . 8 11 . Storage 5 | . 14 14 3 . Processor 2 | . . . . 4 Protection 8 | . . . 7 14 Energy Gun 5 | . 14 9 5 . Energy Cannon 7 | . . . . 15 Ballistic Gun 7 | . 14 11 8 3 Naked Turns . | . . . . . Heaviest Build 19 | 11 11 13 13 19 Greatest Support 40 | 20 20 40 36 36 Greatest Overweight (x) 3 | 3 . . 1 3 Average Overweight (x) . | . . . . . Largest Inventory Capacity 6 | 6 6 6 6 4 Average Capacity 4 | 5 6 6 4 4 Most Carried 6 | 3 4 6 4 4 Average Carried 3 | 2 3 3 3 3 Final Capacity 6 | 6 6 6 4 4 Final Carried 5 | 3 4 5 4 . Class Distribution -------------------- 67% | Mutant 19% | Commander-Mutant 13% | Scavenger-Mutant Dominant Class ---------------- Mutant | -10/Materials Mutant | -10/Mines Scavenger-Mutant | -9/Materials Mutant | -9/Storage Resources | -11 -10 -10 -9 -9 ----------- Run | Scr Mat Min Mat Sto Matter Collected 668 | 209 . 149 52 258 Remotely . | . . . . . Salvage Created 875 | . . 298 49 528 Parts 45 | . . 8 4 33 Haulers Intercepted . | . . . . . Recyclers Shooed 3 | . . . . 3 Parts Field Recycled . | . . . . . Retrieved Matter . | . . . . . Parts Self-Destructed . | . . . . . Prevented . | . . . . . Kills | -11 -10 -10 -9 -9 ------- Run | Scr Mat Min Mat Sto Combat Hostiles Destroyed 15 | . . 4 3 8 Melee 1 | . . . 1 . Guns 7 | . . 3 2 2 Cannons 6 | . . . . 6 Classes Destroyed 7 | . . 2 1 4 Worker 1 | . . . . 1 Builder 1 | . . . . 1 Recycler 2 | . . 1 . 1 Watcher 1 | . . . . 1 Swarmer 4 | . . . 3 1 Grunt 8 | . . 3 . 5 Sentry 3 | . . . . 3 Best Kill Streak 3 | . . 2 2 3 Combat Bots Only 2 | . . 2 2 2 Max Kills in Single Turn 1 | . . 1 1 1 Gunslinging . | . . . . . Exploded . | . . . . . Melee 1 | . . . 1 . Uniques/NPCs Destroyed 1 | . . 1 . . YI-UF0 (-10/Mines) Combat | -11 -10 -10 -9 -9 -------- Run | Scr Mat Min Mat Sto Damage Taken 2732 | . . 942 226 1564 Core 593 | . . 187 26 380 Absorbed by Shields . | . . . . . Core Remaining (%) 62 | 100 . 25 . . Volleys Fired 77 | . . 33 13 31 Largest 2 | . . 2 1 2 Hottest 136 | . . 85 65 136 Shots Fired 114 | . . 45 13 56 Gun 66 | . . 45 13 8 Cannon 48 | . . . . 48 Launcher . | . . . . . Special . | . . . . . Kinetic 30 | . . 28 . 2 Thermal 84 | . . 17 13 54 Explosive . | . . . . . Electromagnetic . | . . . . . Robot Hit Streak 11 | . . 7 2 11 Robot Miss Streak 3 | . . 2 2 3 Penetration Max . | . . . . . Secondary Targets . | . . . . . Shots Hit Robots 66 | . . 31 4 31 Core Hits 37 | . . 12 5 20 Critical Hits 3 | . . . . 3 Critical Kills 1 | . . . . 1 Critical Parts Destroyed 2 | . . . . 2 Melee Attacks . | . . . . . Impact . | . . . . . Slashing . | . . . . . Piercing . | . . . . . Sneak Attacks . | . . . . . Combat Hostiles . | . . . . . Follow-up Attacks . | . . . . . Damage Inflicted 1307 | . . 400 90 817 Guns 614 | . . 400 72 142 Cannons 593 | . . . . 593 Explosions . | . . . . . Melee . | . . . . . Ramming 100 | . . . 18 82 Kinetic 205 | . . 165 . 40 Thermal 1002 | . . 235 72 695 Explosive . | . . . . . Electromagnetic . | . . . . . Impact . | . . . . . Slashing . | . . . . . Piercing . | . . . . . Highest Corruption 7 | . . . . 7 Average Corruption 4 | . . . . 4 Corruption Purged . | . . . . . Effects 9 | . . . . 9 Message Errors 3 | . . . . 3 Matter Fused 3 | . . . . 3 Energy Discharges 1 | . . . . 1 Targeting Errors 1 | . . . . 1 Weapon Failures 1 | . . . . 1 Overload Shots . | . . . . . Overflow Damage . | . . . . . Projectiles . | . . . . . Explosions . | . . . . . Melee . | . . . . . Knockbacks . | . . . . . Impact . | . . . . . Kinetic . | . . . . . Secondary . | . . . . . Self-Inflicted Damage 42 | . . . 7 35 Shots . | . . . . . Rammed 22 | . . . 7 15 Targets Rammed 24 | . . . 8 16 Kicked 2 | . . . 1 1 Crushed . | . . . . . Highest Temperature 552 | . . 34 . 552 Average Temperature 162 | . . 20 . 164 Received Heat Transfer 822 | . . 171 9 642 Effects 10 | . . . . 10 Shutdowns 3 | . . . . 3 Energy Bleed 1 | . . . . 1 Interference 3 | . . . . 3 Matter Decay 1 | . . . . 1 Short Circuit 1 | . . . . 1 Damage (minor) 1 | . . . . 1 Siege Activations . | . . . . . Robots Corrupted . | . . . . . Combat Hostiles . | . . . . . Parts Fried . | . . . . . Impact Corruptions . | . . . . . Robots Melted 1 | . . 1 . . Combat Hostiles 1 | . . 1 . . Parts Melted 5 | . . 1 . 4 Heat Transferred 2035 | . . 555 185 1295 Parts Sabotaged . | . . . . . Parts Stolen . | . . . . . Parts Stripped . | . . . . . Power Chain Reactions . | . . . . . Missiles Intercepted . | . . . . . Alert | -11 -10 -10 -9 -9 ------- Run | Scr Mat Min Mat Sto Peak Influence 550 | . . 50 89 550 Average Influence 126 | . . 11 46 270 Maximum Alert Level 2 | . . . . 2 Low Security (%) 76 | 100 100 100 100 43 Level 1 11 | . . . . 28 Level 2 11 | . . . . 27 Level 3 . | . . . . . Level 4 . | . . . . . Level 5 . | . . . . . High Security . | . . . . . Max Security . | . . . . . Squads Dispatched 6 | . 1 . . 5 Investigation 1 | . . . . 1 Extermination . | . . . . . Reinforcement 4 | . 1 . . 3 Assault . | . . . . . Garrison 1 | . . . . 1 Intercept . | . . . . . Construction Impeded . | . . . . . Haulers Reinforced . | . . . . . Stealth | -11 -10 -10 -9 -9 --------- Run | Scr Mat Min Mat Sto Distress Signals 2 | . . . . 2 Communications Jammed . | . . . . . Distress Signals . | . . . . . Times Spotted 52 | . 1 5 6 40 Peak Tracking Total 7 | . 1 2 3 7 Tactical Retreats 8 | . . 1 1 6 Traps | -11 -10 -10 -9 -9 ------- Run | Scr Mat Min Mat Sto Traps Triggered 3 | . . . . 3 Indirectly . | . . . . . Trap Hack Attempts . | . . . . . Triggered . | . . . . . Disarmed 6 | . . . 6 . Reprogrammed . | . . . . . Reused . | . . . . . Traps Extracted . | . . . . . Installed . | . . . . . Triggered . | . . . . . Machines | -11 -10 -10 -9 -9 ---------- Run | Scr Mat Min Mat Sto Machines Disabled 1 | . . . . 1 Max in Single Turn 1 | . . . . 1 Machines Sabotaged . | . . . . . Garrisons Compromised . | . . . . . Overloaded Fab Kills . | . . . . . Fab Network Shutdowns . | . . . . . Hacking | -11 -10 -10 -9 -9 --------- Run | Scr Mat Min Mat Sto Machines Accessed 5 | . . . 1 4 Terminals 4 | . . . 1 3 Fabricators . | . . . . . Repair Stations . | . . . . . Recycling Units 1 | . . . . 1 Scanalyzers . | . . . . . Garrison Access . | . . . . . Total Hacks 12 | . . . 3 9 Successful 7 | . . . 2 5 Failed 5 | . . . 1 4 Catastrophic 2 | . . . . 2 Database Lockouts . | . . . . . Manual . | . . . . . Terminals 8 | . . . 3 5 Fabricators . | . . . . . Repair Stations . | . . . . . Recycling Units 4 | . . . . 4 Scanalyzers . | . . . . . Garrison Access . | . . . . . Terminal Hacks 4 | . . . 2 2 Open Door 2 | . . . . 2 Locate Traps 1 | . . . 1 . Disarm Traps 1 | . . . 1 . Fabricator Hacks . | . . . . . Repair Station Hacks . | . . . . . Recycling Unit Hacks 3 | . . . . 3 Retrieve Matter 1 | . . . . 1 Retrieve Components 2 | . . . . 2 Scanalyzer . | . . . . . Garrison Access Hacks . | . . . . . Unauthorized Hacks . | . . . . . Terminals . | . . . . . Fabricators . | . . . . . Repair Stations . | . . . . . Recycling Units . | . . . . . Scanalyzers . | . . . . . Garrison Access . | . . . . . Data Cores Recovered . | . . . . . Used . | . . . . . Hacking Detections 3 | . . . 1 2 Full Trace Events 1 | . . . . 1 Feedback Events 1 | . . . . 1 Corruption 1 | . . . . 1 Feedback Blocked . | . . . . . Robot Schematics Acquired . | . . . . . Robots Built . | . . . . . Matter . | . . . . . Time . | . . . . . Total Robot Build Rating . | . . . . . Part Schematics Acquired . | . . . . . Parts Built . | . . . . . Matter . | . . . . . Time . | . . . . . Total Part Build Rating . | . . . . . Parts Repaired . | . . . . . Time . | . . . . . Parts Recycled . | . . . . . Recycled Matter . | . . . . . Retrieved Matter . | . . . . . Retrieved Components 10 | . . . . 10 Parts Scanalyzed . | . . . . . Part Schematics Acquired . | . . . . . Parts Damaged . | . . . . . Bothacking | -11 -10 -10 -9 -9 ------------ Run | Scr Mat Min Mat Sto Used RIF Installer . | . . . . . Robots Hacked . | . . . . . Non-combat . | . . . . . Combat . | . . . . . Robot Hacks Applied . | . . . . . Relay Couplers Released . | . . . . . Robots Rewired . | . . . . . Allies Hacked . | . . . . . Hacks Repelled . | . . . . . Allies | -11 -10 -10 -9 -9 -------- Run | Scr Mat Min Mat Sto Total Allies 10 | . . . . 10 Largest Group 10 | . . . . 10 Highest-Rated Group 85 | . . . . 85 Highest-Rated Ally 13 | . . . . 13 Total Orders 9 | . . . . 9 GOTO 3 | . . . . 3 FOLLOW 4 | . . . . 4 AID 2 | . . . . 2 Ally Attacks 60 | . . . . 60 Total Damage 613 | . . . . 613 Kills 16 | . . . . 16 Allies Corrupted . | . . . . . Allies Melted . | . . . . . Intel | -11 -10 -10 -9 -9 ------- Run | Scr Mat Min Mat Sto Robot Analysis Total . | . . . . . Derelict Logs Recovered . | . . . . . Drone Launches . | . . . . . Drone Recoveries . | . . . . . Exploration | -11 -10 -10 -9 -9 ------------- Run | Scr Mat Min Mat Sto Turns Passed 1614 | 106 52 491 278 687 Spaces Moved 1239 | 78 43 264 227 627 Core 32 | 9 . . . 23 Treads 198 | . . 184 . 14 Legs 451 | 69 43 80 145 114 Wheels . | . . . . . Hover 557 | . . . 82 475 Flight 1 | . . . . 1 Fastest Speed 48 | 50 120 120 48 48 Average Speed 94 | 119 120 147 94 66 Slowest Speed 245 | 200 120 160 120 245 Overloaded Moves . | . . . . . Propulsion Burnouts . | . . . . . Robots Hopped . | . . . . . Cave-ins Triggered . | . . . . . Exploration Rate (%) 32 | 4 12 67 19 61 Regions Visited 4 Branch Regions 2 Pre-discovered Areas . | . . . . . Known Exits Taken . | . . . . . Unknown Exits Taken 4 | 1 1 1 1 . Scrap Searched 1 | . . 1 . . Spaces Dug . | . . . . . Terrain Destroyed . | . . . . . Melee . | . . . . . Projectile . | . . . . . AOE . | . . . . . Actions | -11 -10 -10 -9 -9 --------- Run | Scr Mat Min Mat Sto Total 1566 | 88 43 322 280 833 Wait 140 | 2 . 12 10 116 Move 1235 | 77 42 263 226 627 Hop . | . . . . . Pick Up 20 | 3 1 7 4 5 Fast Attach 33 | 6 . 1 6 20 Attach 13 | . . 6 3 4 Detach . | . . . . . Swap 3 | . . . 2 1 Drop 21 | . . . 8 13 Fire 77 | . . 33 13 31 Melee . | . . . . . Ram 13 | . . . 1 12 Kick 11 | . . . 7 4 Crush . | . . . . . Escape Stasis . | . . . . . Rewire . | . . . . . Trap . | . . . . . Miscellaneous . | . . . . . Route ------- -11/Scrapyard -10/Materials -10/Mines -9/Materials -9/Storage History --------- Turn | Location | Event 15 | -11/Scrapyard | Discovered new exit (range 15) 107 | -11/Scrapyard | Entered Materials 117 | -10/Materials | Discovered new exit (range 13) 159 | -10/Materials | Entered Mines 310 | -10/Mines | Core integrity fell below 50% 315 | -10/Mines | Destroyed YI-UF0 340 | -10/Mines | Lost 5 parts (2p2n1w) 352 | -10/Mines | Build established: Mutant 637 | -10/Mines | Discovered new exit (range 5) 650 | -10/Mines | Entered Materials 650 | -9/Materials | Evolved 2 slots: Propulsion x2 921 | -9/Materials | Discovered new exit (range 15) 928 | -9/Materials | Entered Storage 1168 | -9/Storage | Assisted by bots powering up and referring to "LRC-V3" 1472 | -9/Storage | Build established: Commander-Mutant 1555 | -9/Storage | Garrison activated, responded to threat 1572 | -9/Storage | Core integrity fell below 50% 1595 | -9/Storage | Core integrity fell below 20% 1615 | -9/Storage | Destroyed by S-10 Pest with Light Assault Rifle Last Messages --------------- 01573_ Adv. Beam Cannon temporarily disabled. 01573_ System corrupted: Matter fused (-9). 01573_ Acquired 9 matter. 01574_ Adv. Beam Cannon permanently disabled. 01574_ Overheating: Short circuit. 01574_ Slammed into Y-45 Defender. 01574_ Destabilizing: System corrupted (+2). 01574_ Adv. Beam Cannon destroyed. 01575_ Broken Adv. Beam Cannon destroyed. 01577_ K-01 Serf collects debris. 01578_ Kicked K-01 Serf out of the way. 01578_ ALERT: Hostiles spotted, dispatching reinforcements to Terminal S013. 01579_ Acquired Lgt. Treads. 01580_ K-01 Serf destroyed. 01580_ Acquired 3 matter. 01581_ Lgt. Deuterium Engine destroyed. 01589_ Aluminum Leg destroyed. 01601_ Lgt. Treads destroyed. 01609_ Slammed into O-16 Technician. 01610_ O-16 Technician sends out distress signal. Map ----- +----------------------------------------------------+ | | | | | | | | | | | ?????????????????????????????????????????????????? | | ?????????????????????????????????????????????????? | | ?????????????????????????????????????????????????? | | ?????????????????????????????????????????????????? | | ?????????????????????????????????????????????????? | | ?????????????????????????????????????????????????? | | ?????????????????????????????????????????????????? | | ?????????????????????????????????????????????????? | | ?????????????????????????????#######?????????????? | | ?????????????????????????????#"""""#?????????????? | | ????????????????????????????##""T""####??????????? | | ????????????????????????????# #??????????? | | ????????????????????????????# #??????????? | | ?????????????##########+#####%""" """ #??????????? | | ???????????? # """ """ #??????????? | | ???????????? + """ """ #??????????? | | ???????????? ^ s# #??????????? | | ???????????????###########s## #??????????? | | ??????????????????# # #??????????? | | ??????????????????# ##/########??????????? | | ??????????????????# ! @ ## #?????#####???????? | | ??????????????????# [ ## #?????#[[[#???????? | | ??????????????????############ #?????#=[[#???????? | | ????????????????????#! # #????##=%*#???????? | | ????????????????????# """"" # #????#T!!%#???????? | | ????????????????????# """"" # #########+######### | | ????????????????????# """"" # !*% ! "% | | ???????????????????## + %*%[ %= " | | ????????##?????????# [ """"" # %= | | ????????? ????????##%=""""" ###### """ """ "" | | ?????????? ????????#[ """"" #????# """ """ "" | | ??????????? ???????# #????# """ """ "" | | ????????####+##?????#+########????# | | ????????# T ????# #???????????# ? | | ????????" [ ????# #???????????# """ "? | | ????????? !???# #?????????? # [[= """ "? | | #######?? """ ???# #???????! # [=] """ "? | | #?? """ ?## #???? !!! + [= ??? ? | | "" #"" """ ## ### !!! # ??? ? | | ""[] #?# "%! / # ????? | | ""[*] #?# ##!=### ###########????? | | [![[ #?# ########?#%%#????####??????????????????? | | #"Y"###????????????#!*#??????????????????????????? | | #"""#??????????????# %#??????????????????????????? | | #####??????????????# #??????????????????????????? | +----------------------------------------------------+ Best States ------------- Heat Dissipation 47 Energy Generation 14 Energy Capacity 250 Matter Stores 300 Matter Capacity 300 Sight Range 16 Terrain Scan Density 10 Armor Coverage 150 Weapon Shielding 33 Evasion (%) 55 Targeting Accuracy 6 Recoil Reduction 2 Item Schematics ----------------- None Robot Schematics ------------------ None Fabricated ------------ Nothing Alien Tech Used ----------------- None Achievements -------------- None Challenges ------------ None Game ------ Seed PortableScanCharger Manual? 0 Play Time 00:37:41 Cumulative 14.7 hours Start 2020.05.30 @ 02:09:45 End 2020.05.30 @ 02:51:37 Sessions 1 Manual Loads 0 Difficulty Rogue Special Mode None Game No. 22 Rogue 22 Adventurer 0 Explorer 0 Win Type - Total 0 Types 0/0/0/0/0/0/0 Lore% 15 Gallery% 18 Achievement% 16 Wizard Run 0 Options --------- ASCII 0 Keyboard 0 Movement Mouse Keybinds 0 Fullscreen 2 Font 24/Terminus Map View 113x50 Tactical HUD 1 Map Filters NONE Filters NONE Steam 1 RUN: 761f737f-e0ad-418c-b5a8-7da5f3a9dafe